fUSD/lending_fUSD_20240217
["ID","MTS","AMOUNT","RATE_DAILY","PERIOD"]
[314339363,1708198247641,-152.83932661,0.00042796,30]
[314339364,1708198247651,-150.1,0.000428,4]
[314339365,1708198247660,-166.05101383,0.00042807,30]
[314339366,1708198247670,-167.0,0.00042815,2]
[314339367,1708198247679,-4280.57011207,0.00042835,5]
[314339368,1708198247688,-1687.52535526,0.00042835,5]
[314339369,1708198247697,-152.735015,0.00042878,30]
[314339370,1708198247707,-730.0589355,0.00042897,10]
[314339371,1708198247717,-205.0,0.00042901,27]
[314339372,1708198247726,-155.0,0.0004294,7]
[314339373,1708198247735,-150.0,0.00042944,7]
[314339374,1708198247745,-150.0,0.00042944,7]
[314339375,1708198247754,-150.0,0.00042944,7]
[314339376,1708198247764,-1608.3475989,0.00042963,5]
[314339377,1708198247773,-200.0,0.00042987,12]
[314339378,1708198247783,-150.0,0.00042997,30]
[314339379,1708198247793,-162724.97159872,0.00042998,3]
[314339380,1708198247810,-1284.70752287,0.00042998,3]
[314339381,1708198247822,-4400.11670494,0.00042998,3]
[314339382,1708198247847,-4266.36684709,0.00042998,3]
[314339383,1708198247860,-1694.27651936,0.00042998,3]
[314339384,1708198247871,-1018.36774082,0.00042998,3]
[314339385,1708198248248,-2341.17013201,0.00038399,2]
[314339386,1708198248369,-247431.19108809,0.00038399,2]
[314339395,1708199432210,-181.72443109,0.00024999,2]
[314339396,1708199432219,-750.0,0.00025,3]
[314339397,1708199432229,-206.0,0.00026602,2]
[314339398,1708199432238,-234.0466,0.000269,2]
[314339399,1708199432247,-800.0,0.00027,3]
[314339400,1708199432256,-850.0,0.00029,3]
[314339401,1708199432265,-152.53829154,0.00029,2]
[314339402,1708199432274,-437.90367762,0.000295,3]
[314339403,1708199432283,-23900.0,0.00029841,2]
[314339404,1708199432293,-343.12,0.00029879,2]
[314339405,1708199432302,-178.73,0.000299,2]
[314339406,1708199432311,-499.99,0.000299,2]
[314339407,1708199432320,-199.11858436,0.000299,4]
[314339408,1708199432329,-206.0,0.00029941,7]
[314339409,1708199432338,-4609.81,0.00029941,2]
[314339410,1708199432347,-85124.46731266,0.0003,2]
[314339411,1708199432364,-82193.04738157,0.0003,2]
[314339421,1708199438486,-288949.44302992,0.0003,2]
[314339422,1708199438497,-200.0,0.000301,2]
[314339423,1708199438507,-1764.95,0.00030198,2]
[314339424,1708199438516,-456.02,0.00030214,2]
[314339425,1708199438526,-32251.1625,0.00030358,2]
[314339426,1708199438536,-278.8378,0.00030358,2]
[314339427,1708199438545,-3410.4424,0.00030358,2]
[314339428,1708199438555,-207.225,0.00030358,2]
[314339429,1708199438565,-663.93,0.00030614,2]
[314339430,1708199438575,-250.0,0.00030646,2]
[314339431,1708199438584,-167.84,0.00030743,2]
[314339433,1708199438594,-150.0,0.00030931,2]
[314339435,1708199438603,-900.0,0.00031,3]
[314339437,1708199438612,-167.0,0.0003101,2]
[314339439,1708199438622,-412.44,0.00031741,2]
[314339441,1708199438631,-218.42,0.00031835,2]
[314339443,1708199438641,-456.02,0.00031858,2]
[314339445,1708199438650,-152.54,0.00031874,2]
[314339448,1708199438663,-225.5,0.00032062,2]
[314339450,1708199438672,-278.88,0.00032161,2]
[314339452,1708199438681,-250.0,0.00032314,2]
[314339454,1708199438691,-199.11858433,0.00032371,6]
[314339456,1708199438700,-152.54,0.00032512,2]
[314339458,1708199438710,-623.376,0.00032603,2]
[314339460,1708199438720,-250.0,0.00032708,2]
[314339462,1708199438729,-157.53,0.0003275,2]
[314339464,1708199438739,-170.49,0.00032767,2]
[314339466,1708199438748,-155.09,0.00032825,2]
[314339468,1708199438758,-2000.0,0.00032839,2]
[314339470,1708199438767,-55638.57,0.00032877,2]
[314339472,1708199438776,-663.93,0.00032877,2]
[314339474,1708199438786,-166.7,0.00032995,2]
[314339476,1708199438795,-950.0,0.00033,3]
[314339478,1708199438805,-299.41085414,0.0003308,2]
[314339480,1708199438815,-2210.16,0.0003309,2]
[314339482,1708199438825,-174.05,0.00033138,2]
[314339484,1708199438835,-152.54,0.00033149,2]
[314339486,1708199438845,-206.0,0.00033281,13]
[314339487,1708199438854,-170.49,0.00033422,2]
[314339488,1708199438867,-456.02,0.00033501,2]
[314339489,1708199438877,-1000.0,0.00033757,2]
[314339490,1708199438886,-152.54,0.00033787,2]
[314339491,1708199438896,-169.12,0.00033872,2]
[314339492,1708199438907,-167.83,0.00034045,2]
[314339493,1708199438917,-170.49,0.00034078,2]
[314339494,1708199438930,-152.54,0.00034424,2]
[314339495,1708199438939,-1679.8,0.00034521,2]
[314339496,1708199438949,-170.49,0.00034733,2]
[314339497,1708199438960,-2377.481857,0.000348,2]
[314339498,1708199438969,-12993.479058,0.000348,2]
[314339499,1708199438979,-166.7,0.0003481,2]
[314339500,1708199438988,-155.09,0.00034815,2]
[314339501,1708199438997,-199.11858433,0.00034843,7]
[314339502,1708199439007,-1286.67807912,0.000349,2]
[314339503,1708199439017,-1286.67807912,0.000349,2]
[314339504,1708199439026,-1286.67807912,0.000349,2]
[314339505,1708199439036,-11395.7012,0.00034955,2]
[314339506,1708199439045,-51383.0317,0.00034955,2]
[314339507,1708199439055,-1286.67807912,0.00034995,2]
[314339508,1708199439064,-1000.0,0.00035,3]
[314339509,1708199439073,-209.18429795,0.00035,7]
[314339510,1708199439083,-200.0,0.00035,7]
[314339511,1708199439092,-600.0,0.00035014,2]
[314339512,1708199439101,-152.54,0.00035062,2]
[314339513,1708199439111,-663.93,0.00035141,2]
[314339514,1708199439120,-456.02,0.00035145,2]
[314339515,1708199439130,-170.49,0.00035388,2]
[314339516,1708199439139,-1679.8,0.00035798,2]
[314339517,1708199439149,-3566.222786,0.000358,2]
[314339518,1708199439160,-19490.218588,0.000358,2]
[314339519,1708199439170,-170.49,0.00036044,2]
[314339520,1708199439179,-152.0,0.00036068,7]
[314339521,1708199439189,-169.12,0.0003613,2]
[314339522,1708199439198,-157.53,0.00036225,2]
[314339523,1708199439207,-6056.23641022,0.00036389,2]
[314339524,1708199439217,-6056.23641015,0.00036389,2]
[314339525,1708199439226,-6056.23641015,0.00036389,2]
[314339526,1708199439236,-6056.23641015,0.00036389,2]
[314339527,1708199439246,-1286.67807912,0.00036574,2]
[314339528,1708199439255,-152.0,0.00036616,7]
[314339529,1708199439264,-206.0,0.00036621,19]
[314339530,1708199439274,-166.7,0.00036625,2]
[314339531,1708199439283,-456.02,0.00036789,2]
[314339532,1708199439293,-1360.0527738,0.00036798,2]
[314339533,1708199439302,-1360.05277373,0.00036798,2]
[314339534,1708199439312,-1360.05277373,0.00036798,2]
[314339535,1708199439321,-1360.05277373,0.00036798,2]
[314339536,1708199439331,-4754.963715,0.000368,2]
[314339537,1708199439341,-25986.958117,0.000368,2]
[314339538,1708199439350,-155.09,0.00036804,2]
[314339539,1708199439360,-150.0,0.00036986,2]
[314339540,1708199439369,-300.0,0.00036986,7]
[314339541,1708199439379,-1050.0,0.00037,3]
[314339542,1708199439388,-1679.8,0.00037075,2]
[314339543,1708199439397,-152.0,0.00037164,7]
[314339544,1708199439406,-199.11858433,0.00037314,8]
[314339545,1708199439416,-663.93,0.00037405,2]
[314339546,1708199439425,-180.0,0.00037671,2]
[314339547,1708199439435,-152.0,0.00037712,7]
[314339548,1708199439444,-12507.0,0.000379,2]
[314339549,1708199439455,-1360.05277373,0.000379,2]
[314339550,1708199439464,-6056.23641015,0.000379,2]
[314339551,1708199439473,-585.40192048,0.000379,2]
[314339552,1708199439483,-1000.0,0.00037977,2]
[314339553,1708199439493,-1346.7848607,0.00038,3]
[314339554,1708199439502,-1000.0,0.00038,7]
[314339555,1708199439512,-1000.0,0.00038,7]
[314339556,1708199439521,-1000.0,0.00038,7]
[314339557,1708199439532,-1000.0,0.00038,7]
[314339558,1708199439541,-214.06588635,0.00038,4]
[314339559,1708199439550,-1286.67807912,0.00038153,2]
[314339560,1708199439559,-152.0,0.0003826,7]
[314339561,1708199439569,-100000.0,0.00038299,2]
[314339562,1708199439578,-1679.8,0.00038352,2]
[314339563,1708199439587,-284.56,0.00038356,15]
[314339564,1708199439598,-210.78,0.00038356,2]
[314339565,1708199439607,-151.87,0.00038356,2]
[314339566,1708199439616,-169.12,0.00038389,2]
[314339567,1708199439626,-155.36919028,0.00038399,4]
[314339568,1708199439635,-456.02,0.00038433,2]
[314339569,1708199439645,-166.7,0.0003844,2]
[314339570,1708199439654,-5943.704644,0.000386,2]
[314339571,1708199439663,-32483.697647,0.000386,2]
[314339572,1708199439673,-155.09,0.00038793,2]
[314339573,1708199439683,-1034.9355,0.00038799,2]
[314339574,1708199439692,-152.0,0.00038808,7]
[314339575,1708199439702,-1100.0,0.00039,3]
[314339576,1708199439711,-1000.0,0.00039,8]
[314339577,1708199439721,-1015.0,0.00039,9]
[314339578,1708199439731,-1000.0,0.00039,9]
[314339579,1708199439741,-629.44,0.0003926,2]
[314339580,1708199439750,-152.0,0.00039356,7]
[314339581,1708199439760,-1000.0,0.000395,9]
[314339582,1708199439769,-1679.8,0.0003963,2]
[314339583,1708199439779,-663.93,0.00039669,2]
[314339584,1708199439788,-2000.0,0.000397,2]
[314339585,1708199439798,-157.53,0.000397,2]
[314339586,1708199439807,-152.0,0.0003972,3]
[314339587,1708199439817,-1286.67807912,0.00039732,2]
[314339588,1708199439827,-1000.0,0.0003975,120]
[314339589,1708199439837,-199.11858433,0.00039786,9]
[314339590,1708199439846,-8321.186501,0.0003985,2]
[314339591,1708199439856,-45477.176706,0.0003985,2]
[314339592,1708199439869,-1360.05277373,0.000399,2]
[314339593,1708199439881,-6056.23641015,0.000399,2]
[314339594,1708199439890,-152.0,0.00039904,7]
[314339595,1708199439900,-357.43162372,0.00039958,12]
[314339596,1708199439910,-206.0,0.00039961,25]
[314339597,1708199439919,-800.54171351,0.0004,4]
[314339598,1708199439929,-155.0,0.0004,4]
[314339599,1708199439938,-177.0,0.0004,30]
[314339601,1708199439948,-1000.0,0.0004,10]
[314339602,1708199439958,-533.796299,0.0004,14]
[314339603,1708199439967,-255.0,0.0004,12]
[314339604,1708199439976,-200.0,0.0004,30]
[314339605,1708199439985,-313.0,0.000402,14]
[314339606,1708199439995,-200.0,0.000402,30]
[314339607,1708199440005,-151.87,0.00040274,2]
[314339608,1708199440209,-287.63546888,0.000404,30]
[314339609,1708199440219,-152.0,0.00040452,7]
[314339610,1708199440229,-200.0,0.00040522,5]
[314339611,1708199440239,-200.0,0.00040522,20]
[314339612,1708199440249,-200.0,0.00040522,20]
[314339613,1708199440258,-169.12,0.00040647,2]
[314339614,1708199440267,-151.0,0.00040729,2]
[314339615,1708199440276,-629.44,0.00040733,2]
[314339616,1708199440285,-249.91427298,0.00040733,30]
[314339617,1708199440294,-168.18,0.00040737,2]
[314339618,1708199440304,-152.735015,0.00040752,30]
[314339619,1708199440313,-155.09,0.00040783,2]
[314339620,1708199440323,-984.1945,0.00040799,2]
[314339621,1708199440333,-152.83932661,0.0004081,30]
[314339622,1708199440342,-20000.0,0.00040818,120]
[314339623,1708199440352,-153.06513312,0.00040822,9]
[314339624,1708199440361,-193.01034051,0.00040843,2]
[314339625,1708199440370,-150.92656419,0.00040855,30]
[314339626,1708199440380,-238.99199432,0.0004088,30]
[314339627,1708199440389,-7935.72886156,0.00040912,10]
[314339628,1708199440399,-74799.5337529,0.00040912,6]
[314339629,1708199440409,-150.92656419,0.00040917,30]
[314339630,1708199440419,-463.0,0.00040959,120]
[314339631,1708199440428,-427.33535457,0.00040959,120]
[314339632,1708199440438,-1729.272066,0.00040959,30]
[314339633,1708199440448,-324.76831107,0.00040959,120]
[314339634,1708199440459,-1798.9722433,0.00040959,2]
[314339635,1708199440469,-237.12617,0.00040959,30]
[314339636,1708199440479,-151.42727844,0.00040959,60]
[314339637,1708199440488,-151.42727842,0.00040959,60]
[314339638,1708199440498,-1000.0,0.00040959,2]
[314339639,1708199440507,-1000.0,0.00040959,2]
[314339640,1708199440517,-1000.0,0.00040959,2]
[314339641,1708199440526,-1000.0,0.00040959,2]
[314339642,1708199440535,-1000.0,0.00040959,2]
[314339643,1708199440545,-1000.0,0.00040959,2]
[314339644,1708199440555,-1000.0,0.00040959,2]
[314339645,1708199440564,-1000.0,0.00040959,2]
[314339646,1708199440573,-1000.0,0.00040959,2]
[314339647,1708199440582,-1154.052248,0.00040959,2]
[314339648,1708199440592,-1990.441194,0.00040959,30]
[314339650,1708199440601,-1150.0,0.00041,3]
[314339651,1708199440611,-152.0,0.00041,7]
[314339652,1708199440621,-961.0,0.00041,12]
[314339653,1708199440630,-500.0,0.00041,14]
[314339654,1708199440640,-1000.0,0.00041,11]
[314339655,1708199440649,-824.0,0.00041,9]
[314339656,1708199440659,-150.92656419,0.00041066,30]
[314339657,1708199440669,-150.0,0.00041082,2]
[314339658,1708199440679,-150.0,0.00041083,2]
[314339659,1708199440689,-2500.0,0.00041095,2]
[314339660,1708199440698,-250.42759781,0.00041095,7]
[314339661,1708199440709,-208.19964425,0.00041095,7]
[314339662,1708199440719,-199.34184015,0.00041095,7]
[314339663,1708199440729,-209.16909667,0.00041095,7]
[314339664,1708199440738,-183.0,0.00041096,2]
[314339665,1708199440748,-150.0,0.00041139,2]
[314339666,1708199440757,-200.0,0.000412,15]
[314339667,1708199440766,-915.91,0.00041233,2]
[314339668,1708199440776,-915.91,0.00041233,2]
[314339669,1708199440785,-915.91,0.00041233,2]
[314339670,1708199440795,-915.91,0.00041233,2]
[314339671,1708199440804,-150.0,0.00041235,2]
[314339672,1708199440813,-150.0,0.00041307,2]
[314339673,1708199440823,-1286.67807912,0.00041311,5]
[314339674,1708199440833,-1764.95,0.00041431,2]
[314339675,1708199440843,-7935.72886156,0.00041463,11]
[314339676,1708199440852,-150.0,0.00041465,7]
[314339677,1708199440863,-150.0,0.00041465,7]
[314339678,1708199440874,-150.0,0.00041465,7]
[314339679,1708199440883,-150.0,0.00041487,2]
[314339680,1708199440893,-1699.84806031,0.00041492,15]
[314339681,1708199440903,-150.0,0.00041492,2]
[314339682,1708199440913,-150.0,0.00041539,2]
[314339683,1708199440922,-152.0,0.00041548,7]
[314339684,1708199440932,-150.0,0.00041567,2]
[314339685,1708199440942,-150.0,0.00041581,2]
[314339686,1708199440951,-7935.72886156,0.00041624,11]
[314339687,1708199440962,-255.0,0.00041628,12]
[314339688,1708199440971,-255.0,0.00041628,12]
[314339689,1708199440981,-255.0,0.00041628,12]
[314339690,1708199440991,-255.0,0.00041628,12]
[314339691,1708199441000,-255.0,0.00041628,12]
[314339692,1708199441010,-150.0,0.00041633,2]
[314339693,1708199441019,-1468.23077617,0.00041634,2]
[314339694,1708199441028,-160.19590665,0.0004164,16]
[314339695,1708199441037,-150.0,0.00041645,2]
[314339696,1708199441047,-158.23203844,0.00041679,30]
[314339697,1708199441057,-152.83932661,0.00041689,30]
[314339698,1708199441066,-150.0,0.00041707,2]
[314339699,1708199441075,-150.0,0.00041743,2]
[314339700,1708199441085,-152.83932661,0.00041795,30]
[314339701,1708199441094,-217.78,0.000418,2]
[314339702,1708199441103,-150.0,0.00041815,2]
[314339703,1708199441112,-150.0,0.00041818,2]
[314339704,1708199441122,-150.0,0.00041835,7]
[314339705,1708199441131,-150.0,0.00041835,7]
[314339706,1708199441141,-150.0,0.00041835,7]
[314339707,1708199441151,-150.0,0.00041838,2]
[314339708,1708199441161,-150.0,0.00041864,2]
[314339709,1708199441170,-150.0,0.00041871,2]
[314339710,1708199441181,-1500.0,0.00041884,2]
[314339711,1708199441190,-1500.0,0.00041888,2]
[314339712,1708199441199,-150.0,0.000419,2]
[314339713,1708199441209,-1360.05277373,0.000419,4]
[314339714,1708199441219,-6056.23641015,0.000419,4]
[314339715,1708199441228,-150.0,0.00041902,2]
[314339716,1708199441237,-150.0,0.00041905,2]
[314339717,1708199441247,-150.0,0.00041917,2]
[314339718,1708199441257,-1500.0,0.0004192,2]
[314339719,1708199441267,-150.0,0.0004193,2]
[314339720,1708199441277,-663.93,0.00041933,2]
[314339721,1708199441287,-150.0,0.0004194,2]
[314339722,1708199441296,-153.06513302,0.00041941,14]
[314339723,1708199441306,-167.05922705,0.00041942,30]
[314339724,1708199441315,-150.0,0.00041943,2]
[314339725,1708199441325,-150.0,0.00041945,2]
[314339726,1708199441335,-150.0,0.00041947,2]
[314339727,1708199441344,-150.0,0.00041958,2]
[314339728,1708199441353,-150.0,0.00041958,2]
[314339729,1708199441362,-1500.0,0.00041965,2]
[314339730,1708199441371,-1500.0,0.00041968,2]
[314339731,1708199441380,-150.0,0.00041969,2]
[314339732,1708199441389,-7935.72886156,0.00041973,11]
[314339733,1708199441399,-150.0,0.00041976,2]
[314339734,1708199441408,-7935.72886156,0.0004198,11]
[314339735,1708199441417,-1500.0,0.00041983,2]
[314339736,1708199441426,-250.0,0.00041989,7]
[314339737,1708199441435,-23807.1865847,0.0004199,11]
[314339738,1708199441445,-150.0,0.00041993,2]
[314339739,1708199441455,-965.47916117,0.00042,7]
[314339740,1708199441465,-338.5789,0.00042,59]
[314339741,1708199441474,-39355.74222131,0.00042,30]
[314339742,1708199441483,-500.0,0.00042,14]
[314339743,1708199441493,-155.0,0.00042,2]
[314339744,1708199441502,-154.29233887,0.00042,45]
[314339745,1708199441511,-195.19046206,0.00042,2]
[314339746,1708199441520,-195.19046206,0.00042,2]
[314339747,1708199441530,-195.19046206,0.00042,2]
[314339748,1708199441539,-195.19046206,0.00042,2]
[314339749,1708199441548,-195.19046206,0.00042,2]
[314339750,1708199441558,-195.19046206,0.00042,2]
[314339751,1708199441567,-195.19046206,0.00042,2]
[314339752,1708199441576,-195.19046206,0.00042,2]
[314339753,1708199441585,-195.19046206,0.00042,2]
[314339754,1708199441595,-195.19046206,0.00042,2]
[314339755,1708199441604,-195.19046206,0.00042,2]
[314339756,1708199441613,-195.19046206,0.00042,2]
[314339757,1708199441622,-195.19046206,0.00042,2]
[314339758,1708199441631,-195.19046206,0.00042,2]
[314339759,1708199441640,-195.19046206,0.00042,2]
[314339760,1708199441649,-195.19046206,0.00042,2]
[314339761,1708199441659,-195.19046206,0.00042,2]
[314339762,1708199441668,-195.19046206,0.00042,2]
[314339763,1708199441678,-195.19046206,0.00042,2]
[314339764,1708199441688,-195.19046206,0.00042,2]
[314339765,1708199441697,-195.19046206,0.00042,2]
[314339766,1708199441706,-195.19046206,0.00042,2]
[314339767,1708199441716,-195.19046206,0.00042,2]
[314339768,1708199441725,-195.19046206,0.00042,2]
[314339769,1708199441734,-195.19046206,0.00042,2]
[314339770,1708199441744,-195.19046206,0.00042,2]
[314339771,1708199441754,-195.19046206,0.00042,2]
[314339772,1708199441763,-195.19046206,0.00042,2]
[314339773,1708199441772,-195.19046206,0.00042,2]
[314339774,1708199441782,-195.19046206,0.00042,2]
[314339775,1708199441791,-195.19046206,0.00042,2]
[314339776,1708199441800,-195.19046206,0.00042,2]
[314339777,1708199441810,-195.19046206,0.00042,2]
[314339778,1708199441819,-195.19046206,0.00042,2]
[314339779,1708199441828,-195.19046206,0.00042,2]
[314339780,1708199441838,-195.19046206,0.00042,2]
[314339781,1708199441847,-195.19046206,0.00042,2]
[314339782,1708199441857,-195.19046206,0.00042,2]
[314339783,1708199441874,-195.19046206,0.00042,2]
[314339784,1708199441883,-195.19046206,0.00042,2]
[314339785,1708199441893,-195.19046206,0.00042,2]
[314339786,1708199441903,-195.19046206,0.00042,2]
[314339787,1708199441912,-195.19046206,0.00042,2]
[314339788,1708199441921,-195.19046206,0.00042,2]
[314339789,1708199441931,-195.19046206,0.00042,2]
[314339790,1708199441942,-195.19046206,0.00042,2]
[314339791,1708199441951,-195.19046206,0.00042,2]
[314339792,1708199441961,-195.19046206,0.00042,2]
[314339793,1708199441970,-195.19046206,0.00042,2]
[314339794,1708199441980,-195.19046206,0.00042,2]
[314339795,1708199441989,-150.0,0.00042013,2]
[314339796,1708199441998,-150.0,0.00042015,2]
[314339797,1708199442008,-150.0,0.00042016,2]
[314339798,1708199442017,-7935.72886156,0.0004202,11]
[314339799,1708199442027,-150.0,0.00042037,2]
[314339800,1708199442036,-150.0,0.0004204,2]
[314339801,1708199442045,-300.0,0.0004204,2]
[314339802,1708199442054,-150.0,0.00042045,2]
[314339803,1708199442063,-300.0,0.00042047,2]
[314339804,1708199442072,-1500.0,0.0004205,2]
[314339805,1708199442081,-1699.8480602,0.00042075,16]
[314339806,1708199442090,-150.0,0.00042076,2]
[314339807,1708199442099,-150.0,0.00042078,2]
[314339808,1708199442108,-150.0,0.00042079,2]
[314339809,1708199442117,-150.0,0.00042089,2]
[314339810,1708199442126,-284.56,0.00042092,15]
[314339811,1708199442136,-152.0,0.00042096,7]
[314339812,1708199442145,-150.0,0.00042098,2]
[314339813,1708199442154,-150.0,0.00042098,2]
[314339814,1708199442164,-150.0,0.00042103,2]
[314339815,1708199442173,-39678.6443078,0.00042104,11]
[314339816,1708199442182,-74799.5337529,0.00042104,8]
[314339817,1708199442193,-150.0,0.00042107,2]
[314339818,1708199442203,-150.0,0.00042109,2]
[314339819,1708199442213,-150.0,0.00042115,2]
[314339820,1708199442222,-150.0,0.00042119,2]
[314339821,1708199442231,-150.0,0.00042123,2]
[314339822,1708199442240,-150.0,0.00042141,2]
[314339823,1708199442249,-150.0,0.00042143,2]
[314339824,1708199442259,-150.0,0.00042159,2]
[314339825,1708199442269,-150.0,0.00042165,2]
[314339826,1708199442278,-150.0,0.00042167,2]
[314339827,1708199442287,-1500.0,0.00042173,2]
[314339828,1708199442296,-7935.72886156,0.00042178,11]
[314339829,1708199442305,-300.0,0.00042183,2]
[314339830,1708199442314,-150.0,0.00042186,2]
[314339831,1708199442324,-989.48310961,0.00042188,2]
[314339832,1708199442333,-300.0,0.00042191,2]
[314339833,1708199442342,-915.91,0.00042192,2]
[314339834,1708199442351,-409.85,0.00042192,2]
[314339835,1708199442361,-915.91,0.00042192,2]
[314339836,1708199442370,-405.51,0.00042192,2]
[314339837,1708199442379,-405.51,0.00042192,2]
[314339838,1708199442389,-404.47,0.00042192,2]
[314339839,1708199442398,-915.91,0.00042192,2]
[314339840,1708199442408,-915.91,0.00042192,2]
[314339841,1708199442417,-915.91,0.00042192,2]
[314339842,1708199442426,-915.91,0.00042192,2]
[314339843,1708199442436,-1825.22,0.00042192,2]
[314339844,1708199442445,-151.87,0.00042192,2]
[314339845,1708199442455,-1000.0,0.00042197,2]
[314339846,1708199442465,-200.0,0.000422,16]
[314339847,1708199442474,-150.0,0.00042205,7]
[314339848,1708199442485,-150.0,0.00042205,7]
[314339849,1708199442494,-150.0,0.00042205,7]
[314339850,1708199442504,-629.44,0.00042205,2]
[314339851,1708199442556,-7935.72886156,0.00042216,11]
[314339852,1708199442565,-300.0,0.00042224,2]
[314339853,1708199442574,-1500.0,0.00042226,2]
[314339854,1708199442584,-300.0,0.00042226,2]
[314339855,1708199442594,-300.0,0.00042237,2]
[314339856,1708199442603,-150.0,0.00042252,2]
[314339857,1708199442612,-150.0,0.00042255,2]
[314339858,1708199442622,-199.11858433,0.00042257,10]
[314339859,1708199442631,-1500.0,0.00042258,2]
[314339860,1708199442640,-300.0,0.00042261,2]
[314339861,1708199442650,-152.0,0.00042264,4]
[314339862,1708199442660,-150.0,0.00042273,2]
[314339863,1708199442669,-150.0,0.00042276,2]
[314339864,1708199442678,-150.0,0.00042278,2]
[314339865,1708199442688,-150.0,0.00042279,2]
[314339866,1708199442697,-150.0,0.00042281,2]
[314339867,1708199442707,-249.91427298,0.00042281,30]
[314339868,1708199442716,-150.0,0.00042291,2]
[314339869,1708199442726,-150.0,0.00042292,2]
[314339870,1708199442735,-300.0,0.00042292,2]
[314339871,1708199442744,-150.0,0.00042302,2]
[314339872,1708199442754,-150.0,0.00042302,2]
[314339873,1708199442764,-150.0,0.00042305,2]
[314339874,1708199442773,-150.0,0.00042309,2]
[314339875,1708199442782,-150.0,0.00042317,2]
[314339876,1708199442791,-150.0,0.00042329,2]
[314339877,1708199442801,-150.0,0.00042331,2]
[314339878,1708199442810,-300.0,0.00042338,2]
[314339879,1708199442819,-152.15491724,0.00042342,2]
[314339880,1708199442830,-150.0,0.00042343,2]
[314339881,1708199442839,-300.0,0.00042365,2]
[314339882,1708199442849,-150.0,0.00042372,2]
[314339883,1708199442858,-150.0,0.00042377,2]
[314339884,1708199442869,-1500.0,0.00042381,2]
[314339885,1708199442879,-300.0,0.00042394,2]
[314339886,1708199442888,-300.0,0.000424,2]
[314339887,1708199442897,-1500.0,0.00042405,2]
[314339888,1708199442908,-150.0,0.00042407,2]
[314339889,1708199442917,-150.0,0.00042421,2]
[314339890,1708199442926,-150.0,0.00042427,2]
[314339891,1708199442936,-150.0,0.0004243,2]
[314339892,1708199442945,-150.0,0.00042438,2]
[314339893,1708199442957,-150.0,0.00042446,2]
[314339894,1708199442967,-150.0,0.00042469,2]
[314339895,1708199442977,-200.0,0.00042472,20]
[314339897,1708199442986,-7935.72886156,0.00042478,11]
[314339898,1708199442995,-150.0,0.00042478,2]
[314339899,1708199443005,-150.0,0.00042479,2]
[314339900,1708199443014,-5000.0,0.00042488,3]
[314339901,1708199443022,-150.0,0.00042488,2]
[314339902,1708199443031,-327.19370469,0.00042489,2]
[314339903,1708199443294,-64.97679884,0.00042489,2]
[314339904,1708199443303,-150.0,0.00042493,2]
[314339905,1708199443312,-2000.0,0.000425,2]
[314339906,1708199443321,-150.0,0.00042502,2]
[314339907,1708199443330,-1500.0,0.00042503,2]
[314339908,1708199443340,-160.92875649,0.00042504,2]
[314339909,1708199443349,-150.0,0.00042506,2]
[314339910,1708199443358,-150.0,0.00042506,2]